[Event "56th Rubinstein Memorial D 2020"]
[Site "Polanica Zdroj"]
[Date "2020.08.22"]
[Round "8.19"]
[White "Ratajczak, Hubert"]
[Black "Garwacki, Kornel"]
[Result "1-0"]
[ECO "C50"]
[WhiteElo "1513"]
[BlackElo "1492"]
[Annotator "NA"]
[PlyCount "88"]
[EventDate "2020.08.15"]
[EventType "swiss"]
[EventCountry "POL"]
[SourceTitle "playchess.com"]
[Source "ChessBase"]
[SourceQuality "1"]
[TimeControl "40/5400+30:1800+30"]

1. e4 {[%emt 0:00:00]} e5 {[%emt 0:00:00]} 2. Nf3 {[%emt 0:00:33]} Nc6 {[%emt 0:00:00]} 3. Bc4 {[%emt 0:00:20]} Nf6 {[%emt 0:00:00]} 4. d3 {[%emt 0:00:09]} Bc5 {[%emt 0:00:00]} 5. c3 {[%emt 0:00:55]} d6 {[%emt 0:00:15]} 6. O-O {[%emt 0:00:20]} Bg4 {[%emt 0:00:17]} 7. a4 {[%emt 0:05:45]} a5 {[%emt 0:00:30]} 8. Nbd2 {[%emt 0:02:00]} O-O {[%emt 0:00:47]} 9. h3 {[%emt 0:00:42]} Bh5 {[%emt 0:00:33]} 10. Re1 {[%emt 0:01:03]} Qd7 {[%emt 0:01:01]} 11. Nf1 {[%emt 0:01:05]} Rad8 {[%emt 0:00:45]} 12. Bg5 {[%emt 0:02:35]} Bg6 {[%emt 0:02:05]} 13. Ne3 {[%emt 0:02:15]} Ne7 {[%emt 0:02:30]} 14. Qd2 {[%emt 0:04:26]} c6 {[%emt 0:02:23]} 15. Bxf6 {[%emt 0:00:31]} Bxe3 {[%emt 0:01:41]} 16. Qxe3 {[%emt 0:02:21]} gxf6 {[%emt 0:00:21]} 17. d4 {[%emt 0:02:49]} Kh8 {[%emt 0:04:20]} 18. Rad1 {[%emt 0:00:49]} Rg8 {[%emt 0:01:53]} 19. dxe5 {[%emt 0:04:12]} Bh5 {[%emt 0:03:53]} 20. Kh1 {[%emt 0:05:18]} Bxf3 {[%emt 0:01:56]} 21. Qxf3 {[%emt 0:00:37]} fxe5 {[%emt 0:00:40]} 22. Rd3 {[%emt 0:07:08]} Rg6 {[%emt 0:04:02]} 23. Qxf7 {[%emt 0:06:07]} Rdg8 {[%emt 0:01:39]} 24. Rg3 {[%emt 0:04:25]} Rxg3 {[%emt 0:01:15]} 25. fxg3 {[%emt 0:00:07]} Rxg3 {[%emt 0:01:52]} 26. Qf6+ {[%emt 0:02:00]} Rg7 {[%emt 0:00:15]} 27. Rd1 {[%emt 0:07:01]} d5 {[%emt 0:05:02]} 28. exd5 {[%emt 0:00:18]} cxd5 {[%emt 0:01:08]} 29. Qxe5 {[%emt 0:00:07]} Qxa4 {[%emt 0:02:41]} 30. b3 {[%emt 0:00:45]} Qa2 {[%emt 0:00:52]} 31. Bxd5 {[%emt 0:01:09]} Nxd5 {[%emt 0:03:23]} 32. Qxd5 {[%emt 0:00:20]} h6 {[%emt 0:01:21]} 33. Re1 {[%emt 0:01:25]} Qc2 {[%emt 0:02:02]} 34. c4 {[%emt 0:05:47]} Kh7 {[%emt 0:05:26]} 35. Qe4+ {[%emt 0:01:06]} Qxe4 {[%emt 0:00:02]} 36. Rxe4 {[%emt 0:00:10]} Rg3 {[%emt 0:09:12]} 37. Re7+ {[%emt 0:00:09]} Rg7 {[%emt 0:00:10]} 38. Rxg7+ {[%emt 0:01:54]} Kxg7 {[%emt 0:00:02]} 39. Kg1 {[%emt 0:00:09]} Kf6 {[%emt 0:00:06]} 40. Kf2 {[%emt 0:00:04]} Ke5 {[%emt 0:00:15]} 41. Ke3 {[%emt 0:30:05]} b6 {[%emt 0:30:53]} 42. g4 {[%emt 0:00:16]} Kd6 {[%emt 0:00:26]} 43. Kd4 {[%emt 0:01:04]} Ke6 {[%emt 0:00:12]} 44. h4 {[%emt 0:00:10]} Kd6 1-0

[Event "56th Rubinstein Memorial D 2020"]
[Site "Polanica Zdroj"]
[Date "2020.08.22"]
[Round "8.20"]
[White "Lewandrowski, Tomasz"]
[Black "Perek, Oskar"]
[Result "1-0"]
[ECO "D45"]
[WhiteElo "1879"]
[BlackElo "1447"]
[Annotator "NA"]
[PlyCount "67"]
[EventDate "2020.08.15"]
[EventType "swiss"]
[EventCountry "POL"]
[SourceTitle "playchess.com"]
[Source "ChessBase"]
[SourceQuality "1"]
[TimeControl "40/5400+30:1800+30"]

{[%evp 8,67,33,14,18,9,1,-16,4,0,13,-38,27,0,0,29,47,32767,87,32767,32767,32767,32767,131,32767,32767,32767,32767,32767,32767,32767,32767,32767,32767,32767,146,164,32767,372,32767,32767,272,32767,32767,32767,32767,32767,32767,32767,409,393,428,1447,1571,32767,14,1493,1994,32767,29993,32767,29998]} 1. d4 {[%emt 0:00:00]} d5 {[%emt 0:00:00]} 2. c4 {[%emt 0:00:00]} c6 {[%emt 0:00:02]} 3. Nc3 {[%emt 0:00:14]} Nf6 {[%emt 0:00:36]} 4. Nf3 {[%emt 0:00:25]} e6 {[%emt 0:01:32]} 5. e3 {[%emt 0:01:08]} Nbd7 {[%emt 0:01:12]} 6. Qc2 {[%emt 0:00:45]} Bd6 {[%emt 0:01:31]} 7. Bd2 {[%emt 0:02:41]} h6 {[%emt 0:01:18] D45: Semi-Slav: 5 e3.} 8. O-O-O {[%emt 0:05:58] [#]} a5 $146 {[%emt 0:02:25]} ({Predecessor:} 8... Qe7 9. h3 a6 10. Kb1 dxc4 11. e4 Bc7 12. Bxc4 b5 13. Bd3 c5 14. dxc5 Nxc5 15. Nxb5 axb5 16. Bxb5+ {1-0 (30) Dlugy,M (2531)-Schneider,I (2376) San Diego 2006}) 9. g4 {[%emt 0:01:39]} Qe7 {[%emt 0:02:49]} 10. Rg1 {[%emt 0:01:22]} dxc4 $1 {[%emt 0:00:58]} 11. e4 {[%emt 0:01:31]} e5 {[%emt 0:00:47]} 12. Bxc4 {[%emt 0:05:24]} b5 {[%emt 0:01:17]} (12... exd4 $1 $11 {remains equal.} 13. Nxd4 Ne5) 13. Be2 {[%emt 0:01:33]} b4 {[%emt 0:02:05]} 14. Na4 {[%emt 0:00:14]} Bb7 {[%emt 0:00:43]} 15. Bc4 {[%emt 0:07:46]} c5 {[%emt 0:02:47]} 16. d5 {[%emt 0:00:51]} Ba6 {[%emt 0:00:13]} 17. g5 {[%emt 0:04:04]} hxg5 {[%emt 0:00:24]} 18. Bxg5 {[%emt 0:00:09]} Bxc4 {[%emt 0:00:44]} 19. Qxc4 {[%emt 0:00:03]} g6 {[%emt 0:01:02]} 20. h4 {[%emt 0:01:10]} Qd8 {[%emt 0:01:57]} 21. Kb1 {[%emt 0:01:38]} Ke7 {[%emt 0:01:14]} 22. Nh2 {[%emt 0:00:37]} Qc7 $2 {[%emt 0:02:05]} (22... Kf8 $16 23. Ng4 Kg7) 23. Ng4 {[%emt 0:00:34]} Rh5 {[%emt 0:01:33]} 24. Rd3 {[%emt 0:02:29]} Rxg5 {[%emt 0:00:39]} 25. hxg5 {[%emt 0:00:09]} Nh5 {[%emt 0:00:08]} 26. Rf3 {[%emt 0:01:33]} Nf4 {[%emt 0:00:41]} 27. Rh1 {[%emt 0:00:29]} Re8 {[%emt 0:02:23]} 28. Rh7 {[%emt 0:01:50]} Nf8 {[%emt 0:02:19]} 29. Rg7 {[%emt 0:00:34]} Qd7 {[%emt 0:00:31]} 30. Nh6 {[%emt 0:01:45]} Qxa4 {[%emt 0:00:24]} 31. Rxf7+ $2 {[%emt 0:00:18]} (31. b3 $18 Qd7 32. Nxf7) 31... Kd8 {[%emt 0:00:32]} 32. b3 {[%emt 0:00:13]} Qa3 {[%emt 0:00:33]} 33. Qa6 {[%emt 0:02:28]} Bb8 {[%emt 0:00:13] [#]} 34. Qb6+ $1 {[%emt 0:00:20] Double Attack} 1-0

[Event "56th Rubinstein Memorial D 2020"]
[Site "Polanica Zdroj"]
[Date "2020.08.23"]
[Round "9.1"]
[White "Szmidt, Przemyslaw"]
[Black "Gromczak, Dariusz"]
[Result "1/2-1/2"]
[ECO "B06"]
[WhiteElo "1831"]
[BlackElo "1785"]
[Annotator "NA RC"]
[PlyCount "22"]
[EventDate "2020.08.15"]
[EventType "swiss"]
[EventCountry "POL"]
[SourceTitle "playchess.com"]
[Source "ChessBase"]
[SourceQuality "1"]
[TimeControl "40/5400+30:1800+30"]

{[%evp 8,22,73,45,72,65,74,56,87,30,61,7,8,21,10,6,0]} 1. e4 {[%emt 0:00:00]} g6 {[%emt 0:00:00]} 2. d4 {[%emt 0:00:00]} Bg7 {[%emt 0:00:10]} 3. Nc3 {[%emt 0:00:00]} d6 {[%emt 0:00:32]} 4. Be2 {[%emt 0:00:05]} e6 {[%emt 0:02:19]} 5. h4 {[%emt 0:00:16]} h6 {[%emt 0:01:01]} 6. Be3 {[%emt 0:01:40]} Ne7 {[%emt 0:04:10]} 7. Qd2 {[%emt 0:01:17]} Nd7 {[%emt 0:03:30]} 8. Nf3 {[%emt 0:02:49]} ({White should try} 8. O-O-O $16) 8... b6 {[%emt 0:03:37]} 9. a4 {[%emt 0:01:48]} a6 {[%emt 0:01:44]} 10. Rd1 {[%emt 0:07:57]} Bb7 {[%emt 0:01:03]} 11. Bc4 {[%emt 0:02:49]} Nf6 $11 {[%emt 0:05:40]} 1/2-1/2

[Event "56th Rubinstein Memorial D 2020"]
[Site "Polanica Zdroj"]
[Date "2020.08.23"]
[Round "9.2"]
[White "Simon, Marek"]
[Black "Kozlowski, Pawel"]
[Result "0-1"]
[ECO "E84"]
[WhiteElo "1878"]
[BlackElo "1913"]
[Annotator "NA"]
[PlyCount "70"]
[EventDate "2020.08.15"]
[EventType "swiss"]
[EventCountry "POL"]
[SourceTitle "playchess.com"]
[Source "ChessBase"]
[SourceQuality "1"]
[TimeControl "40/5400+30:1800+30"]

{[%evp 8,63,44,30,42,45,56,28,39,56,45,33,43,-1,0,32767,23,-65,11,0,22,14,17,10,40,0,0,0,22,27,26,-37,-42,-157,-72,-86,32767,-274,-284,-400,-392,-387,-414,-425,-433,-781,-393,-770,-810,-790,-885,-827,-723,-694,-779,-666,-739,-777]} 1. d4 {[%emt 0:00:00]} Nf6 {[%emt 0:02:31]} 2. c4 {[%emt 0:00:00]} g6 {[%emt 0:00:03]} 3. Nc3 {[%emt 0:00:01]} Bg7 {[%emt 0:00:04]} 4. e4 {[%emt 0:00:09]} d6 {[%emt 0:00:07]} 5. f3 {[%emt 0:00:21]} O-O {[%emt 0:00:17]} 6. Be3 {[%emt 0:00:10]} Nc6 {[%emt 0:00:29]} 7. Nge2 {[%emt 0:00:31]} a6 {[%emt 0:00:19]} 8. Qd2 {[%emt 0:00:47]} Rb8 {[%emt 0:00:39]} 9. Nc1 {[%emt 0:10:16]} e5 {[%emt 0:00:12]} 10. Nb3 {[%emt 0:01:41]} exd4 {[%emt 0:04:27]} 11. Nxd4 {[%emt 0:00:19]} Bd7 {[%emt 0:20:37]} 12. h4 {[%emt 0:17:19] [#] E84: King's Indian: Sämisch Panno: 7 Nge2 a6 8 Qd2 Rb8.} (12. Rd1 $11) 12... Nxd4 $146 {[%emt 0:12:08]} ({Predecessor:} 12... Ne5 13. O-O-O b5 14. cxb5 axb5 15. Ndxb5 Rb7 16. Na3 Qa8 17. Nc4 Be6 18. Nxe5 dxe5 {½-½ (102) Simic,M (2136)-Pantelic,S (2293) Vrnjacka Banja 2008}) 13. Bxd4 {[%emt 0:00:38]} h5 {[%emt 0:00:54]} 14. Ba7 {[%emt 0:14:06]} Ra8 {[%emt 0:01:59]} 15. Be3 {[%emt 0:00:59]} Rb8 {[%emt 0:07:48]} 16. Ba7 {[%emt 0:00:10]} Ra8 {[%emt 0:00:07]} 17. Be3 {[%emt 0:00:02]} Re8 {[%emt 0:01:40]} 18. Be2 {[%emt 0:02:08]} b5 {[%emt 0:13:12]} 19. cxb5 {[%emt 0:01:27]} axb5 {[%emt 0:00:03]} 20. Bxb5 {[%emt 0:02:14] [#]} ({White should play} 20. Nxb5 $15 d5 21. Rc1) 20... Bxb5 {[%emt 0:00:30]} (20... Nxe4 $142 $1 {[%mdl 512]} 21. Nxe4 Bxb5) 21. Nxb5 {[%emt 0:00:04]} d5 {[%emt 0:03:28]} 22. e5 $2 {[%emt 0:25:53]} (22. Nc3 $17 {might work better.}) 22... Rxe5 {[%emt 0:01:57]} 23. O-O {[%emt 0:01:22] [#]} (23. O-O-O $142) 23... d4 $1 {[%emt 0:00:11]} 24. Nxd4 {[%emt 0:01:16] [#]} Rxe3 $1 {[%emt 0:00:09]} 25. Qxe3 {[%emt 0:00:32]} Ng4 $1 {[%emt 0:00:03] Discovered Attack} 26. Qg5 {[%emt 0:05:39]} ({Not} 26. fxg4 $2 Bxd4 27. Qf2 Bxf2+ $19) (26. Nc6 $142 Nxe3 27. Nxd8 Nxf1 28. Kxf1) 26... Bf6 {[%emt 0:01:20]} 27. Nc6 $2 {[%emt 0:01:05]} (27. Ne6 Qd6 28. fxg4 (28. Qf4 $2 Be5 $19) 28... Bxg5 29. Nxg5) 27... Qd6 {[%emt 0:00:05]} ({Less strong is} 27... Bxg5 28. Nxd8 Be3+ 29. Kh1 $15) 28. fxg4 {[%emt 0:04:25]} Bxg5 {[%emt 0:00:10]} 29. hxg5 {[%emt 0:00:12]} Qxc6 {[%emt 0:00:16]} 30. gxh5 {[%emt 0:00:25]} Qc5+ {[%emt 0:01:02]} 31. Rf2 {[%emt 0:02:40]} gxh5 $19 {[%emt 0:00:23]} 32. a4 {[%emt 0:01:40]} Rb8 {[%emt 0:04:20]} 33. Kf1 {[%emt 0:00:28]} Qc4+ {[%emt 0:00:37]} 34. Kg1 {[%emt 0:00:14]} Qd4 {[%emt 0:00:03]} 35. Ra2 {[%emt 0:00:30]} Re8 {[%emt 0:00:51]} 0-1

[Event "56th Rubinstein Memorial D 2020"]
[Site "Polanica Zdroj"]
[Date "2020.08.23"]
[Round "9.5"]
[White "Kalkowski, Igor"]
[Black "Borowski, Przemyslaw"]
[Result "0-1"]
[ECO "B46"]
[WhiteElo "1747"]
[BlackElo "1790"]
[Annotator "NA RC"]
[PlyCount "77"]
[EventDate "2020.08.15"]
[EventType "swiss"]
[EventCountry "POL"]
[SourceTitle "playchess.com"]
[Source "ChessBase"]
[SourceQuality "1"]
[TimeControl "40/5400+30:1800+30"]

1. e4 {[%emt 0:00:32]} c5 {[%emt 0:00:17]} 2. Nc3 {[%emt 0:00:11]} a6 {[%emt 0:00:32]} 3. Nf3 {[%emt 0:00:07]} e6 {[%emt 0:00:25]} 4. d4 {[%emt 0:01:27]} cxd4 {[%emt 0:00:12]} 5. Nxd4 {[%emt 0:00:07]} Nc6 {[%emt 0:00:23]} 6. g3 {[%emt 0:00:14]} Qc7 {[%emt 0:02:06]} 7. Bg2 {[%emt 0:00:08]} Nf6 {[%emt 0:01:20]} 8. O-O {[%emt 0:00:08]} Bb4 {[%emt 0:05:41]} 9. Nde2 {[%emt 0:09:11]} b5 {[%emt 0:03:32]} 10. Bf4 {[%emt 0:04:09]} e5 {[%emt 0:08:14]} 11. Bg5 {[%emt 0:00:17]} Ne7 {[%emt 0:13:54]} 12. Bxf6 {[%emt 0:03:34]} gxf6 {[%emt 0:00:10]} 13. a4 {[%emt 0:09:00]} bxa4 {[%emt 0:11:08]} 14. Rxa4 {[%emt 0:02:56]} Rb8 {[%emt 0:00:25]} 15. Na2 {[%emt 0:17:11]} Bc5 {[%emt 0:02:56]} 16. b4 {[%emt 0:01:55]} Ba7 {[%emt 0:00:57]} 17. Qd3 {[%emt 0:00:16]} O-O {[%emt 0:20:03]} 18. c4 {[%emt 0:00:54]} d6 {[%emt 0:04:01]} 19. Rd1 {[%emt 0:02:02]} Rb6 {[%emt 0:01:06]} 20. Nec3 {[%emt 0:02:33]} Be6 {[%emt 0:03:35]} 21. Nd5 {[%emt 0:01:20]} Nxd5 {[%emt 0:00:23]} 22. exd5 {[%emt 0:00:22]} Bd7 {[%emt 0:00:49]} 23. Ra3 {[%emt 0:00:40]} Rc8 {[%emt 0:02:41]} 24. Rc1 {[%emt 0:03:32]} Rbb8 {[%emt 0:07:52]} 25. Be4 {[%emt 0:01:26]} Bd4 {[%emt 0:01:26]} 26. Rxa6 {[%emt 0:08:52]} Ra8 {[%emt 0:01:22]} 27. c5 {[%emt 0:03:45]} Qb7 {[%emt 0:03:47]} 28. Rxa8 {[%emt 0:06:19]} Qxa8 {[%emt 0:00:09]} 29. Rc2 {[%emt 0:01:59]} dxc5 {[%emt 0:01:28]} 30. Bxh7+ {[%emt 0:02:07]} Kg7 {[%emt 0:00:22]} 31. Bf5 {[%emt 0:03:44]} Qxd5 {[%emt 0:01:55]} 32. Nc3 {[%emt 0:00:39]} Qb7 {[%emt 0:01:34]} 33. Be4 {[%emt 0:08:16]} Qa7 {[%emt 0:00:55]} 34. Ra2 {[%emt 0:01:42]} Qb8 {[%emt 0:00:28]} 35. Nd5 {[%emt 0:04:01]} cxb4 {[%emt 0:00:24]} 36. Qf3 {[%emt 0:00:48]} Qd6 {[%emt 0:00:36]} 37. Bd3 {[%emt 0:00:45]} Rc1+ {[%emt 0:00:17]} 38. Kg2 {[%emt 0:00:07]} Qe6 {[%emt 0:00:43]} 39. Bf1 0-1

[Event "56th Rubinstein Memorial D 2020"]
[Site "Polanica Zdroj"]
[Date "2020.08.23"]
[Round "9.6"]
[White "Ciborowski, Konrad Jr"]
[Black "Kaczanowski, Pawel"]
[Result "1-0"]
[ECO "B34"]
[WhiteElo "1405"]
[BlackElo "1655"]
[Annotator "NA"]
[PlyCount "69"]
[EventDate "2020.08.15"]
[EventType "swiss"]
[EventCountry "POL"]
[SourceTitle "playchess.com"]
[Source "ChessBase"]
[SourceQuality "1"]
[TimeControl "40/5400+30:1800+30"]

1. e4 {[%emt 0:00:00]} c5 {[%emt 0:00:00]} 2. Nf3 {[%emt 0:00:00]} Nc6 {[%emt 0:00:00]} 3. d4 {[%emt 0:00:00]} cxd4 {[%emt 0:00:00]} 4. Nxd4 {[%emt 0:00:00]} Nf6 {[%emt 0:00:00]} 5. Nc3 {[%emt 0:00:00]} e5 {[%emt 0:00:00]} 6. Ndb5 {[%emt 0:00:00]} d6 {[%emt 0:00:03]} 7. Nd5 {[%emt 0:00:00]} Nxd5 {[%emt 0:00:26]} 8. exd5 {[%emt 0:00:00]} Nb8 {[%emt 0:00:07]} 9. c4 {[%emt 0:00:00]} Be7 {[%emt 0:00:06]} 10. Bd3 {[%emt 0:00:10]} O-O {[%emt 0:00:09]} 11. O-O {[%emt 0:00:12]} Nd7 {[%emt 0:00:42]} 12. Be3 {[%emt 0:00:12]} a6 {[%emt 0:00:09]} 13. Nc3 {[%emt 0:00:04]} f5 {[%emt 0:00:09]} 14. f3 {[%emt 0:00:05]} Bg5 {[%emt 0:00:23]} 15. Bf2 {[%emt 0:00:03]} Qf6 {[%emt 0:01:43]} 16. Na4 {[%emt 0:02:16]} b6 {[%emt 0:15:45]} 17. b4 {[%emt 0:06:33]} Rb8 {[%emt 0:11:54]} 18. Qc2 {[%emt 0:07:00]} Bb7 {[%emt 0:13:31]} 19. Nxb6 {[%emt 0:04:46]} Nxb6 {[%emt 0:00:40]} 20. Bxb6 {[%emt 0:00:05]} Bxd5 {[%emt 0:03:05]} 21. Bc7 {[%emt 0:00:04]} Rbc8 {[%emt 0:03:44]} 22. cxd5 {[%emt 0:00:05]} Rf7 {[%emt 0:04:58]} 23. Bxf5 {[%emt 0:01:45]} Be3+ {[%emt 0:03:28]} 24. Kh1 {[%emt 0:00:09]} Rfxc7 {[%emt 0:01:20]} 25. Be6+ {[%emt 0:00:27]} Kh8 {[%emt 0:00:45]} 26. Qe4 {[%emt 0:00:04]} Qh6 {[%emt 0:02:23]} 27. Bxc8 {[%emt 0:00:51]} Rxc8 {[%emt 0:00:05]} 28. g3 {[%emt 0:02:35]} Bd4 {[%emt 0:00:32]} 29. Qf5 {[%emt 0:00:24]} Rg8 {[%emt 0:06:12]} 30. Rac1 {[%emt 0:05:10]} Bf2 {[%emt 0:01:01]} 31. Rc8 {[%emt 0:12:44]} Bxg3 {[%emt 0:02:51]} 32. Rxg8+ {[%emt 0:00:04]} Kxg8 {[%emt 0:00:06]} 33. Qe6+ {[%emt 0:00:02]} Qxe6 {[%emt 0:00:08]} 34. dxe6 {[%emt 0:00:04]} Bf4 {[%emt 0:00:07]} 35. Rd1 {[%emt 0:00:37]} 1-0

[Event "56th Rubinstein Memorial D 2020"]
[Site "Polanica Zdroj"]
[Date "2020.08.23"]
[Round "9.7"]
[White "Wawrzyniak, Pawel"]
[Black "Kolodziejski, Grzegorz"]
[Result "0-1"]
[ECO "E11"]
[WhiteElo "1824"]
[BlackElo "1550"]
[Annotator "NA"]
[PlyCount "82"]
[EventDate "2020.08.15"]
[EventType "swiss"]
[EventCountry "POL"]
[SourceTitle "playchess.com"]
[Source "ChessBase"]
[SourceQuality "1"]
[TimeControl "40/5400+30:1800+30"]

{[%evp 8,70,25,13,23,19,31,36,30,27,130,25,80,26,25,10,16,-3,-11,0,-8,-14,18,0,0,-12,8,32767,32767,32767,32767,32767,96,21,45,-15,-45,-113,-148,-261,102,-354,-161,-1129,-913,-1818,-1952,-1846,32767,-3418,-254,-269,32767,32767,32767,32767,32767,32767,32767,32767,32767,32767,32767,32767,-417]} 1. d4 {[%emt 0:00:00]} Nf6 {[%emt 0:00:00]} 2. c4 {[%emt 0:00:00]} e6 {[%emt 0:00:00]} 3. Nf3 {[%emt 0:00:00]} Bb4+ {[%emt 0:00:08]} 4. Bd2 {[%emt 0:00:09]} a5 {[%emt 0:00:31]} 5. g3 {[%emt 0:00:16]} d6 {[%emt 0:01:22]} 6. Bg2 {[%emt 0:00:11]} Nbd7 {[%emt 0:00:27]} 7. O-O {[%emt 0:05:32]} e5 {[%emt 0:01:43]} 8. e3 {[%emt 0:01:13]} O-O {[%emt 0:01:44] [#] E11: Bogo-Indian.} ({Black should play} 8... c6 $14) 9. Qc2 {[%emt 0:04:34]} (9. Bc1 $1 $16) 9... Re8 {[%emt 0:03:42]} 10. a3 {[%emt 0:05:56]} Bxd2 {[%emt 0:00:20]} 11. Nbxd2 {[%emt 0:00:10] [#]} c6 $146 {[%emt 0:03:10]} ({Predecessor:} 11... exd4 12. exd4 Nf8 13. Rfe1 a4 14. Rxe8 Qxe8 15. Re1 Qd8 16. Nh4 Ra5 17. Ne4 {½-½ (17) Mishra,N (2301)-Kumar,G (2274) Puchong 2017}) 12. b4 {[%emt 0:25:31]} e4 {[%emt 0:08:01]} 13. Ng5 {[%emt 0:05:46]} d5 {[%emt 0:00:30]} 14. Nh3 {[%emt 0:03:10]} h5 {[%emt 0:06:31]} 15. b5 {[%emt 0:03:13]} h4 {[%emt 0:03:38]} 16. Rac1 {[%emt 0:11:45]} Ng4 {[%emt 0:07:26]} 17. cxd5 {[%emt 0:21:57]} cxd5 {[%emt 0:00:35]} 18. Qc7 {[%emt 0:00:01]} Qe7 {[%emt 0:01:21]} 19. Nf4 {[%emt 0:00:40]} hxg3 {[%emt 0:02:24]} 20. hxg3 {[%emt 0:00:16]} (20. Nxd5 $16 gxf2+ 21. Rxf2 Qxa3 22. Rcf1) 20... Qg5 {[%emt 0:00:29]} 21. Qd6 {[%emt 0:06:07]} Ndf6 {[%emt 0:00:48]} 22. Rc5 {[%emt 0:00:50]} (22. Rfe1 $11 {remains equal.}) 22... Qh6 {[%emt 0:00:10]} 23. Rfc1 {[%emt 0:00:37]} (23. Bh3 $17 Nh2 24. Bg2) 23... Qh2+ {[%emt 0:02:24]} ({Weaker is} 23... b6 24. Rc7 $17 (24. Qxb6 Qh2+ 25. Kf1 Nxe3+ {[%mdl 64] Deflection} 26. fxe3 Qxg3 $19)) 24. Kf1 {[%emt 0:00:08] [#]} Nxf2 {[%emt 0:01:20]} (24... Nxe3+ $142 $1 {[%mdl 512]} 25. fxe3 Qxg3) 25. Nxd5 $2 {[%emt 0:02:28]} (25. Kxf2 $17 Ng4+ 26. Ke2 Qxg3 27. Nf1 Qf2+ 28. Kd1) 25... Nxd5 {[%emt 0:03:40]} 26. Kxf2 {[%emt 0:00:20] [#]} Bh3 $1 {[%emt 0:00:47]} 27. Rg1 {[%emt 0:01:11] [#]} Re6 {[%emt 0:00:24]} (27... Nxe3 $142 $1 {[%mdl 512]} 28. Qf4 (28. Kxe3 Qxg1+) 28... Ng4+ 29. Kf1 e3) 28. Qxd5 {[%emt 0:00:31]} (28. Rxd5 $142 Rxd6 29. Rxd6 Bxg2 30. Rxg2) 28... Bxg2 $2 {[%emt 0:00:20]} (28... Rf6+ 29. Ke2 Bg4+ 30. Nf3 Qxg1) 29. Rxg2 {[%emt 0:00:51]} Rf6+ {[%emt 0:00:06]} 30. Qf5 {[%emt 0:00:17]} Rxf5+ {[%emt 0:01:03]} 31. Rxf5 {[%emt 0:00:02]} Qh7 {[%emt 0:00:10]} 32. Rf4 {[%emt 0:00:45]} f5 {[%emt 0:00:14]} 33. Rh4 {[%emt 0:01:26]} Qg6 {[%emt 0:00:16]} 34. Rgh2 {[%emt 0:00:24]} Kf7 {[%emt 0:00:20]} 35. Nc4 {[%emt 0:00:01]} Qe6 {[%emt 0:00:50]} 36. Ne5+ {[%emt 0:00:17]} Kf6 {[%emt 0:01:08]} 37. g4 {[%emt 0:00:49]} Qa2+ {[%emt 0:00:28]} 38. Kg3 {[%emt 0:00:16]} Qxa3 {[%emt 0:00:25]} 39. gxf5 {[%emt 0:01:19]} Qxe3+ {[%emt 0:00:15]} 40. Kg4 {[%emt 0:00:02]} Qxd4 {[%emt 0:01:14]} 41. Ng6 {[%emt 0:30:42]} Qd1+ {[%emt 0:30:22]} 0-1

[Event "56th Rubinstein Memorial D 2020"]
[Site "Polanica Zdroj"]
[Date "2020.08.23"]
[Round "9.8"]
[White "Bukala, Weronika"]
[Black "Podgorski, Maciej"]
[Result "1/2-1/2"]
[ECO "A48"]
[WhiteElo "1504"]
[BlackElo "1810"]
[Annotator "NA RC"]
[PlyCount "39"]
[EventDate "2020.08.15"]
[EventType "swiss"]
[EventCountry "POL"]
[SourceTitle "playchess.com"]
[Source "ChessBase"]
[SourceQuality "1"]
[TimeControl "40/5400+30:1800+30"]

{[%evp 8,31,22,16,20,-10,-2,-32,3,-14,0,0,0,0,32767,32767,0,0,25,0,0,4,47,68,88,0]} 1. d4 {[%emt 0:00:00]} Nf6 {[%emt 0:00:00]} 2. Nf3 {[%emt 0:00:00]} g6 {[%emt 0:00:00]} 3. e3 {[%emt 0:00:02]} Bg7 {[%emt 0:00:00]} 4. b3 {[%emt 0:00:15]} O-O {[%emt 0:00:28]} 5. Bb2 {[%emt 0:00:11]} d6 {[%emt 0:00:08]} 6. Nbd2 {[%emt 0:02:05]} b6 {[%emt 0:00:18]} 7. c4 {[%emt 0:00:54]} Nbd7 {[%emt 0:00:18]} 8. Qc2 {[%emt 0:02:04]} c5 {[%emt 0:00:25]} 9. d5 {[%emt 0:01:06]} e6 {[%emt 0:00:21]} 10. dxe6 {[%emt 0:15:00]} fxe6 {[%emt 0:00:05]} 11. O-O-O {[%emt 0:09:37]} a5 {[%emt 0:01:21]} 12. Ne4 {[%emt 0:06:05]} Nxe4 {[%emt 0:04:40]} 13. Bxg7 {[%emt 0:05:08]} Kxg7 {[%emt 0:00:08]} ({Wrong is} 13... Nxf2 $2 14. Bxf8 (14. Qxf2 Kxg7 15. Rxd6 Qe7 $15) 14... Nxd1 15. Bh6 $18 (15. Bxd6 Nxe3 16. Qe4 {[%mdl 64] Double Attack} Nb8 $16)) 14. Qxe4 {[%emt 0:00:06] Double Attack} Ra7 {[%emt 0:01:11]} (14... d5 $5 {[%cal Rd5e4]} 15. Qxe6 Qf6 16. Qxf6+ (16. cxd5 Qc3+ 17. Kb1 Nf6 $17) 16... Nxf6 $14) 15. Rxd6 {[%emt 0:07:32]} Qf6 {[%emt 0:00:05]} 16. Rxe6 $11 {[%emt 0:00:57]} (16. Bd3 $14) 16... Qa1+ {[%emt 0:00:08]} 17. Qb1 {[%emt 0:00:15]} Qc3+ {[%emt 0:00:05]} 18. Qc2 {[%emt 0:00:10]} Qa1+ {[%emt 0:00:05]} 19. Qb1 {[%emt 0:00:05]} Qc3+ {[%emt 0:00:13]} 20. Qc2 {[%emt 0:00:06]} 1/2-1/2